bitfinex/quotes_BTCUSD_20250127
["timestamp","ask_amount","ask_price","bid_price","bid_amount"]
[1737963204345,0.01554,98153.0,98152.0,0.152824]
[1737963204543,0.01554,98153.0,98152.0,0.25217129]
[1737963204723,0.01554,98153.0,98152.0,0.39060129]
[1737963204961,0.01554,98153.0,98152.0,0.38860129]
[1737963205162,0.01554,98153.0,98152.0,0.09734729]
[1737963205363,0.01654,98153.0,98136.0,0.005]
[1737963205634,0.01654,98153.0,98137.0,0.09734729]
[1737963205909,0.37122034,98150.0,98133.0,0.00063733]
[1737963206128,0.302852,98134.0,98133.0,0.00063733]
[1737963206473,0.302852,98134.0,98133.0,3.3e-07]
[1737963206674,0.15286,98129.0,98126.0,0.5]
[1737963207054,0.30286,98129.0,98126.0,0.5]
[1737963207560,0.00549553,98134.0,98133.0,0.001]
[1737963207779,0.00549553,98134.0,98133.0,0.25120029]
[1737963208066,0.00049553,98134.0,98133.0,0.40020029]
[1737963208508,0.00049553,98134.0,98133.0,2.95444129]
[1737963208710,0.00249553,98134.0,98133.0,2.16769629]
[1737963208911,0.00549553,98134.0,98133.0,2.00344029]
[1737963209114,0.00349553,98134.0,98133.0,1.36092929]
[1737963209361,0.00349553,98134.0,98133.0,0.85612629]
[1737963209512,0.00349553,98134.0,98133.0,0.85912629]
[1737963209889,0.00349553,98134.0,98133.0,0.85612629]
[1737963210093,0.15334753,98134.0,98133.0,0.09734729]
[1737963210390,0.30334753,98134.0,98133.0,0.007]
[1737963210597,0.30434753,98134.0,98133.0,0.007]
[1737963210799,0.30334753,98134.0,98133.0,0.001]
[1737963211078,0.15334753,98134.0,98133.0,0.001]
[1737963211292,0.15434753,98134.0,98133.0,0.006]
[1737963211492,0.00149553,98134.0,98133.0,0.001]
[1737963211694,0.00149553,98134.0,98133.0,0.09834729]
[1737963211904,0.00749553,98134.0,98133.0,0.25134219]
[1737963212108,0.15334753,98134.0,98133.0,0.09748919]
[1737963212331,0.15334753,98134.0,98133.0,0.0021419]
[1737963212583,0.30334753,98134.0,98133.0,0.0021419]
[1737963212788,0.15334753,98134.0,98133.0,0.0001419]
[1737963213149,0.20144753,98134.0,98133.0,0.0001419]
[1737963213550,0.20144753,98134.0,98133.0,0.0041419]
[1737963213753,0.00049553,98134.0,98133.0,0.0041419]
[1737963213956,0.00349553,98134.0,98133.0,0.25034219]
[1737963214133,0.00349553,98134.0,98133.0,0.09748919]
[1737963214337,0.00949553,98134.0,98133.0,0.09848919]
[1737963214537,0.15634753,98134.0,98133.0,0.09748919]
[1737963214742,0.15634753,98134.0,98133.0,0.20755319]
[1737963214939,0.00849553,98134.0,98133.0,0.43883619]
[1737963215144,0.02203553,98134.0,98133.0,0.22018419]
[1737963215345,0.02203553,98134.0,98133.0,0.0001419]
[1737963215346,0.17488753,98134.0,98133.0,0.0001419]
[1737963215552,0.17588753,98134.0,98133.0,0.0001419]
[1737963215958,0.02003553,98134.0,98133.0,0.25034219]
[1737963216199,0.02203553,98134.0,98133.0,0.09748919]
[1737963216386,0.02203553,98134.0,98133.0,0.25034219]
[1737963216711,0.01903553,98134.0,98133.0,0.25034219]
[1737963216917,0.0759,98217.0,98152.0,0.01]
[1737963217046,0.203667,98200.0,98183.0,0.152774]
[1737963217243,0.203667,98200.0,98184.0,0.09734729]
[1737963217244,0.152772,98185.0,98184.0,0.09734729]
[1737963217495,0.5341,98216.0,98163.0,0.09734729]
[1737963217697,0.38293014,98200.0,98163.0,0.09734729]
[1737963217894,0.5341,98215.0,98163.0,0.09734729]
[1737963217895,0.5341,98215.0,98164.0,0.10838555]
[1737963218102,0.20361,98227.0,98187.0,0.152769]
[1737963218355,0.5341,98241.0,98187.0,0.25011629]
[1737963218356,0.0759,98237.0,98187.0,0.25011629]
[1737963218558,7.9e-07,98188.0,98187.0,0.40011629]
[1737963218778,7.9e-07,98188.0,98187.0,0.41011629]
[1737963218978,7.9e-07,98188.0,98187.0,0.40011629]
[1737963219111,0.37427421,98260.0,98187.0,0.40011629]
[1737963219112,0.20354,98261.0,98193.0,0.40736]
[1737963219311,0.01056255,98273.0,98231.0,0.09734729]
[1737963219682,0.000298,98287.0,98251.0,0.15267]
[1737963219683,0.00866987,98275.0,98251.0,0.15267]
[1737963219860,0.203539,98261.0,98232.0,0.152699]
[1737963220104,0.01883821,98252.0,98233.0,1.64630929]
[1737963220310,0.01883821,98252.0,98197.0,0.90148312]
[1737963220516,0.02,98233.0,98198.0,0.09734729]
[1737963220727,0.173,98219.0,98197.0,0.09734729]
[1737963220932,0.173,98219.0,98189.0,0.04332636]
[1737963220933,0.5341,98241.0,98199.0,0.09734729]
[1737963221161,0.203585,98239.0,98207.0,0.09734729]
[1737963221360,0.1209,98251.0,98212.0,0.09734729]
[1737963221574,0.045,98251.0,98213.0,1.516453]
[1737963221781,0.152681,98244.0,98214.0,0.203636]
[1737963221988,0.004,98219.0,98218.0,0.152721]
[1737963222189,0.01883821,98252.0,98219.0,2.262364]
[1737963222410,0.01883821,98252.0,98240.0,0.09734729]
[1737963222612,0.01883821,98252.0,98241.0,0.210458]
[1737963222817,0.01883821,98252.0,98242.0,0.09734729]
[1737963222973,0.01883821,98252.0,98244.0,0.203574]
[1737963223150,0.01883821,98252.0,98245.0,1.02997294]
[1737963223350,0.01639434,98252.0,98246.0,0.311553]
[1737963223669,0.22657,98246.0,98219.0,0.90148312]
[1737963223870,0.01689048,98252.0,98219.0,0.90148312]
[1737963223871,0.01589048,98252.0,98236.0,0.09734729]
[1737963224075,0.01589048,98252.0,98243.0,0.152681]
[1737963224327,0.01589048,98252.0,98236.0,0.90148312]
[1737963224328,0.01589048,98252.0,98246.0,0.09734729]
[1737963224664,0.01589048,98252.0,98251.0,0.25001729]
[1737963224773,0.01589048,98252.0,98251.0,0.40001729]
[1737963225187,0.01589048,98252.0,98251.0,0.43041538]
[1737963225385,1e-08,98252.0,98251.0,3.33901038]
[1737963225601,0.00955581,98295.0,98251.0,3.33901038]
[1737963225602,0.00955581,98295.0,98286.0,0.152615]
[1737963225815,0.00044681,98287.0,98286.0,1.30144541]
[1737963226465,0.00044681,98287.0,98286.0,3.92647441]
[1737963226666,0.00044681,98287.0,98286.0,3.96838041]
[1737963227544,0.00955581,98295.0,98294.0,0.312603]
[1737963227748,0.00955581,98295.0,98294.0,0.40995029]
[1737963228070,0.00955581,98295.0,98294.0,4.05839013]
[1737963228274,0.00955581,98295.0,98294.0,4.08134415]
[1737963228685,0.79283865,98303.0,98301.0,0.332592]
[1737963228901,0.79283865,98303.0,98302.0,0.33259]
[1737963228902,0.68260423,98303.0,98302.0,0.33259]
[1737963229134,0.60450423,98303.0,98302.0,2.90820729]
[1737963229334,0.60450423,98303.0,98302.0,2.69961129]
[1737963229534,0.60450423,98303.0,98302.0,2.39702129]
[1737963229759,0.60450423,98303.0,98302.0,1.63172847]
[1737963229971,0.60450423,98303.0,98302.0,0.88171347]
[1737963230248,0.62750423,98303.0,98302.0,0.37367847]
[1737963230419,0.62750423,98303.0,98302.0,0.17844847]
[1737963230765,0.93109323,98303.0,98302.0,0.08185647]
[1737963231012,0.93109323,98303.0,98302.0,0.008]
[1737963231230,1.00599323,98303.0,98302.0,0.001]
[1737963231422,0.023,98279.0,98278.0,0.90148312]
[1737963231762,0.203456,98301.0,98286.0,0.152614]
[1737963231877,0.68040423,98303.0,98278.0,1.52624541]
[1737963231878,0.68040423,98303.0,98287.0,0.09734729]
[1737963232082,0.023,98289.0,98287.0,0.09734729]
[1737963232289,0.023,98289.0,98288.0,0.549106]
[1737963232486,0.173,98302.0,98288.0,0.49384129]
[1737963232687,0.15,98302.0,98289.0,0.73291829]
[1737963232905,0.152608,98291.0,98290.0,0.101832]
[1737963233151,0.15,98299.0,98271.0,0.00014881]
[1737963233306,0.023,98278.0,98272.0,0.27456629]
[1737963233508,0.023,98279.0,98273.0,0.119892]
[1737963233706,0.025,98279.0,98274.0,0.09734729]
[1737963233933,0.023,98294.0,98275.0,0.431317]
[1737963234129,0.023,98296.0,98275.0,0.431317]
[1737963234331,0.152636,98273.0,98272.0,0.106381]
[1737963234552,0.0452,98279.0,98272.0,0.20372829]
[1737963234783,0.0452,98279.0,98272.0,0.09734729]
[1737963234994,0.023,98278.0,98273.0,0.101982]
[1737963235246,0.023,98276.0,98271.0,0.00014881]
[1737963235409,0.175637,98272.0,98271.0,0.00014881]
[1737963235782,0.0462,98279.0,98271.0,0.3427141]
[1737963236000,0.0462,98279.0,98273.0,0.203514]
[1737963236001,0.001,98279.0,98273.0,0.203514]
[1737963236225,0.001,98279.0,98278.0,0.24997529]
[1737963236584,0.001,98279.0,98278.0,1.30008829]
[1737963236781,0.00029758,98295.0,98294.0,0.152603]
[1737963237028,0.00029758,98295.0,98294.0,0.24995029]
[1737963237554,0.00029758,98295.0,98294.0,1.24988429]
[1737963237748,0.00029758,98295.0,98294.0,2.34854529]
[1737963238045,0.00029758,98295.0,98294.0,0.80678829]
[1737963238253,2.799e-05,98295.0,98294.0,0.65418529]
[1737963238451,0.02302799,98295.0,98253.0,0.90148312]
[1737963238663,0.203473,98293.0,98272.0,1.05049729]
[1737963238823,0.203473,98293.0,98271.0,0.20366481]
[1737963238824,0.175634,98274.0,98271.0,0.00014881]
[1737963239037,0.0452,98282.0,98272.0,0.22696829]
[1737963239277,0.0452,98282.0,98274.0,0.203512]
[1737963239414,2.799e-05,98295.0,98275.0,1.47848329]
[1737963239617,2.799e-05,98295.0,98276.0,0.161715]
[1737963239618,0.023,98280.0,98276.0,0.161715]
[1737963239856,0.01854,98280.0,98279.0,0.09734729]
[1737963240079,0.01854,98280.0,98279.0,0.24997329]
[1737963240291,0.04154,98280.0,98279.0,0.09734729]
[1737963240485,0.04154,98280.0,98279.0,0.53794629]
[1737963240690,0.04154,98280.0,98279.0,0.452915]
[1737963240847,0.171165,98280.0,98279.0,0.102718]
[1737963241081,0.275265,98280.0,98279.0,0.003]
[1737963241449,0.12264,98280.0,98279.0,0.70045429]
[1737963241641,0.04154,98280.0,98279.0,1.20464029]
[1737963241844,0.01854,98280.0,98279.0,1.58114629]
[1737963242051,0.01854,98280.0,98279.0,0.87945429]
[1737963242270,0.01854,98280.0,98279.0,0.63256929]
[1737963242484,0.01854,98280.0,98279.0,0.78519529]
[1737963242695,0.01854,98280.0,98279.0,0.78619529]
[1737963242942,0.01854,98280.0,98279.0,1.17759529]
[1737963243143,1e-06,98280.0,98279.0,1.17659529]
[1737963243326,2.799e-05,98295.0,98294.0,0.302603]
[1737963243527,2.799e-05,98295.0,98294.0,4.92743041]
[1737963243735,0.57043076,98303.0,98302.0,0.02]
[1737963243939,0.57043076,98303.0,98302.0,0.42993729]
[1737963244164,0.57043076,98303.0,98302.0,3.88988129]
[1737963244355,0.55008576,98303.0,98302.0,2.97433329]
[1737963244533,0.46870576,98303.0,98302.0,3.00433329]
[1737963244742,0.00029821,98351.0,98323.0,0.15]
[1737963244901,0.0007961,98351.0,98335.0,0.09734729]
[1737963245105,0.0778,98343.0,98336.0,0.814172]
[1737963245313,0.0778,98343.0,98337.0,0.09734729]
[1737963245314,0.152535,98338.0,98337.0,0.09734729]
[1737963245530,0.023,98327.0,98300.0,0.2414]
[1737963245727,0.152541,98335.0,98309.0,0.09734729]
[1737963245923,0.0478,98342.0,98310.0,1.381191]
[1737963246145,0.023,98340.0,98311.0,0.09734729]
[1737963246320,0.0478,98342.0,98302.0,0.007]
[1737963246321,0.152589,98303.0,98302.0,0.007]
[1737963246539,0.253389,98303.0,98302.0,0.43810129]
[1737963246748,0.253389,98303.0,98302.0,0.37118829]
[1737963246975,0.253389,98303.0,98302.0,0.36077929]
[1737963247212,0.301189,98303.0,98302.0,0.01]
[1737963247379,0.301189,98303.0,98247.0,0.00289245]
[1737963247380,0.023,98301.0,98247.0,0.00289245]
[1737963247537,0.203481,98289.0,98251.0,0.09734729]
[1737963247737,0.305191,98299.0,98251.0,0.09734729]
[1737963247738,0.152668,98252.0,98251.0,0.09734729]
[1737963247982,0.15097286,98252.0,98251.0,0.09734729]
[1737963248416,0.15097286,98252.0,98220.0,0.0086639]
[1737963248417,0.152716,98221.0,98220.0,0.0086639]
[1737963248570,0.0478,98233.0,98220.0,0.10601119]
[1737963248805,0.152715,98222.0,98221.0,0.09734729]
[1737963249224,0.0478,98233.0,98190.0,0.203686]
[1737963249575,0.0478,98233.0,98165.0,0.21242958]
[1737963249576,0.152757,98195.0,98194.0,0.09734729]
[1737963249983,0.152768,98188.0,98180.0,0.0001418]
[1737963250796,0.5441,98231.0,98180.0,0.0001418]
[1737963250797,0.152761,98193.0,98180.0,0.0001418]
[1737963250998,0.5341,98231.0,98189.0,0.203688]
[1737963251138,0.08662209,98232.0,98190.0,0.09734729]
[1737963251340,0.0778,98232.0,98190.0,0.09734729]
[1737963251589,0.152732,98211.0,98198.0,0.09734729]
[1737963251765,0.2278,98232.0,98200.0,0.09734729]
[1737963251980,0.152746,98202.0,98200.0,0.09734729]
[1737963252180,0.15,98231.0,98200.0,0.09734729]
[1737963252379,0.0778,98232.0,98200.0,0.09734729]
[1737963252380,0.0868,98232.0,98210.0,0.09734729]
[1737963252582,0.0778,98232.0,98231.0,0.152701]
[1737963252788,0.0778,98232.0,98231.0,0.25004829]
[1737963252948,0.0778,98253.0,98231.0,0.09734729]
[1737963253145,0.0778,98253.0,98221.0,0.15]
[1737963253146,0.0478,98259.0,98258.0,0.152659]
[1737963253344,0.04515424,98259.0,98258.0,0.09734729]
[1737963253953,0.04515424,98259.0,98258.0,0.25000629]
[1737963254160,0.0778,98270.0,98269.0,0.152642]
[1737963254398,0.0778,98270.0,98269.0,0.24998929]
[1737963254622,0.0778,98270.0,98269.0,0.09734729]
[1737963254824,0.0778,98295.0,98269.0,0.09734729]
[1737963255025,0.0778,98295.0,98294.0,0.152603]
[1737963255366,0.0778,98315.0,98302.0,0.15259]
[1737963255577,0.0778,98315.0,98302.0,0.39993729]
[1737963255995,0.0778,98315.0,98302.0,0.24993729]
[1737963256213,0.203377,98340.0,98302.0,0.24993729]
[1737963256442,0.0778,98332.0,98302.0,0.24993729]
[1737963256639,0.0778,98332.0,98302.0,0.63287629]
[1737963256843,0.00029821,98351.0,98302.0,0.65287629]
[1737963257046,0.00029821,98351.0,98302.0,0.64287629]
[1737963257254,0.00029821,98351.0,98315.0,0.15]
[1737963257508,0.0007961,98351.0,98346.0,0.09734729]
[1737963257789,0.152521,98347.0,98346.0,0.09734729]
[1737963258273,0.0007961,98351.0,98323.0,0.90148312]
[1737963258471,0.15,98335.0,98315.0,0.004]
[1737963258676,0.152559,98323.0,98316.0,0.09734729]
[1737963258880,0.00850094,98353.0,98316.0,0.09734729]
[1737963258881,0.203361,98347.0,98317.0,0.406846]
[1737963259106,0.004,98347.0,98327.0,0.09734729]
[1737963259333,0.15254,98335.0,98327.0,0.09734729]
[1737963259538,0.152537,98337.0,98327.0,0.09734729]
[1737963259740,0.15255,98328.0,98327.0,0.09734729]
[1737963259956,0.15255,98328.0,98278.0,0.02]
[1737963259957,0.15,98333.0,98306.0,0.90148312]
[1737963260164,0.049,98317.0,98307.0,0.09734729]
[1737963260606,0.203425,98316.0,98307.0,0.09734729]
[1737963260810,0.04896,98317.0,98307.0,0.09734729]
[1737963260956,0.04896,98317.0,98316.0,0.09734729]
[1737963261387,0.00014928,98317.0,98316.0,0.09734729]
[1737963261587,0.15271628,98317.0,98316.0,0.09734729]
[1737963261787,0.00014928,98317.0,98316.0,0.09734729]
[1737963262548,0.15471628,98317.0,98316.0,0.09734729]
[1737963262691,0.15271628,98317.0,98316.0,0.09734729]
[1737963262887,0.00014928,98317.0,98316.0,0.09734729]
[1737963263477,0.00014928,98317.0,98316.0,0.09934729]
[1737963263885,0.15271628,98317.0,98316.0,0.09734729]
[1737963264079,0.15271628,98317.0,98316.0,0.003]
[1737963264281,0.10604928,98317.0,98271.0,0.203518]
[1737963264499,0.10604928,98317.0,98250.0,0.3]
[1737963264500,0.152598,98298.0,98282.0,0.09734729]
[1737963264704,0.08304928,98317.0,98292.0,0.09734729]
[1737963264948,0.08304928,98317.0,98302.0,0.09734729]
[1737963265181,0.00014928,98317.0,98316.0,0.152569]
[1737963265311,0.00514928,98317.0,98315.0,0.09734729]
[1737963265510,0.00014928,98317.0,98316.0,0.152569]
[1737963265753,0.00014928,98317.0,98316.0,0.24991629]
[1737963266082,0.00214928,98317.0,98316.0,0.24991629]
[1737963266256,0.00214928,98317.0,98316.0,1.15139941]
[1737963266607,0.00014928,98317.0,98316.0,1.15139941]
[1737963266742,0.00214928,98317.0,98316.0,1.30139941]
[1737963267467,0.00614928,98317.0,98316.0,2.26262741]
[1737963267687,2.8e-07,98317.0,98316.0,2.30562741]
[1737963267871,0.0459,98364.0,98327.0,0.15]
[1737963268074,0.01854,98385.0,98352.0,0.15]
[1737963268323,0.01854,98385.0,98381.0,0.152468]
[1737963268471,0.0459,98386.0,98381.0,0.24981529]
[1737963268472,0.0006978,98382.0,98381.0,0.24981529]
[1737963268924,0.0006978,98382.0,98381.0,0.09734729]
[1737963269274,0.1531638,98382.0,98381.0,0.09734729]
[1737963269499,0.0006978,98382.0,98351.0,0.90148312]
[1737963269701,0.0006978,98382.0,98358.0,0.24985029]
[1737963269908,0.15,98379.0,98339.0,0.203377]
[1737963270113,0.15,98379.0,98355.0,0.09734729]
[1737963270323,0.0006978,98382.0,98355.0,0.09734729]
[1737963270324,0.152497,98363.0,98355.0,0.09734729]
[1737963270532,0.0006978,98382.0,98355.0,0.09734729]
[1737963270533,0.152507,98356.0,98355.0,0.09734729]
[1737963271141,0.152507,98356.0,98329.0,0.203397]
[1737963271142,0.023,98365.0,98333.0,0.152541]
[1737963271337,0.152539,98336.0,98334.0,0.09734729]
[1737963271566,0.152545,98332.0,98323.0,0.152557]
[1737963271792,0.023,98363.0,98324.0,0.09734729]
[1737963271968,0.152521,98347.0,98324.0,0.09734729]
[1737963272174,0.0459,98364.0,98355.0,0.002]
[1737963272372,0.152507,98356.0,98355.0,0.002]
[1737963272612,0.023,98363.0,98342.0,0.20337]
[1737963272943,0.15251,98355.0,98346.0,0.152521]
[1737963273098,0.203328,98363.0,98347.0,0.09734729]
[1737963273316,0.152513,98352.0,98347.0,0.09734729]
[1737963273522,0.0463978,98364.0,98330.0,0.90148312]
[1737963273523,0.0483978,98364.0,98330.0,0.90148312]
[1737963273724,0.152522,98346.0,98331.0,0.30074129]
[1737963273950,0.0483978,98364.0,98338.0,0.09734729]
[1737963274150,0.0483978,98364.0,98341.0,0.09734729]
[1737963274299,0.0483978,98364.0,98356.0,0.09734729]
[1737963274502,0.0483978,98364.0,98363.0,0.152496]
[1737963274715,0.0483978,98364.0,98363.0,0.09734729]
[1737963274919,0.2008918,98364.0,98363.0,0.09734729]
[1737963275146,0.152513,98353.0,98342.0,0.91153782]
[1737963275366,0.003,98355.0,98343.0,0.09734729]
[1737963275367,0.001,98355.0,98343.0,0.09734729]
[1737963275577,0.023,98363.0,98343.0,0.09734729]
[1737963275908,0.023,98363.0,98344.0,0.203367]
[1737963276191,0.0463978,98364.0,98344.0,0.203367]
[1737963276192,0.0004978,98364.0,98363.0,0.152496]
[1737963276393,0.0004978,98364.0,98363.0,1.16138111]
[1737963276547,0.0004978,98364.0,98363.0,1.16238111]
[1737963276961,0.0004978,98364.0,98363.0,1.16138111]
[1737963277573,0.0004978,98364.0,98363.0,1.31138111]
[1737963278454,0.0034978,98364.0,98363.0,1.31238111]
[1737963278653,0.0814,98403.0,98363.0,1.15988511]
[1737963278898,0.00044748,98394.0,98386.0,0.09734729]
[1737963279053,0.00044748,98394.0,98390.0,0.152454]
[1737963279451,0.00044748,98394.0,98391.0,0.09734729]
[1737963279654,0.00044748,98394.0,98393.0,0.152449]
[1737963279841,0.00044748,98394.0,98393.0,0.24979629]
[1737963280146,0.00044748,98394.0,98393.0,0.09734729]
[1737963280271,0.00044748,98394.0,98393.0,0.24979629]
[1737963280468,0.00044748,98394.0,98393.0,0.09734729]
[1737963280682,0.00044748,98394.0,98393.0,0.24979629]
[1737963281096,0.00044748,98394.0,98393.0,0.09734729]
[1737963281519,0.023,98392.0,98391.0,0.002]
[1737963281754,0.175451,98392.0,98391.0,0.002]
[1737963281986,0.203267,98393.0,98369.0,0.91153782]
[1737963281987,0.023,98393.0,98369.0,0.91153782]
[1737963282191,0.15248,98373.0,98372.0,0.09734729]
[1737963282396,0.256882,98372.0,98334.0,0.91153782]
[1737963282601,0.256882,98372.0,98340.0,0.203375]
[1737963282805,0.256882,98372.0,98347.0,0.15]
[1737963282978,0.1044,98372.0,98371.0,0.09932536]
[1737963283198,0.256682,98372.0,98371.0,0.09932536]
[1737963283612,0.023,98372.0,98371.0,0.09932536]
[1737963283823,0.023,98372.0,98371.0,0.10032536]
[1737963284041,0.203268,98392.0,98372.0,0.203309]
[1737963284243,0.203231,98410.0,98371.0,0.10032536]
[1737963284244,0.203292,98381.0,98373.0,0.09734729]
[1737963284431,0.152472,98379.0,98373.0,0.09734729]
[1737963284662,0.023,98376.0,98373.0,0.09734729]
[1737963284777,0.20328,98387.0,98373.0,0.09734729]
[1737963284979,0.203254,98399.0,98374.0,0.203305]
[1737963285182,0.004,98392.0,98375.0,0.09734729]
[1737963285423,0.023,98389.0,98375.0,0.30065029]
[1737963285625,0.023,98390.0,98375.0,0.09734729]
[1737963285845,0.004,98392.0,98377.0,0.09734729]
[1737963286047,0.152473,98378.0,98377.0,0.09734729]
[1737963286427,0.152497,98363.0,98347.0,0.91153782]
[1737963286622,0.173,98383.0,98356.0,0.09734729]
[1737963286871,0.023,98357.0,98356.0,0.09734729]
[1737963287066,0.152505,98357.0,98356.0,0.09734729]
[1737963287242,0.175505,98357.0,98356.0,0.09734729]
[1737963287443,0.203337,98359.0,98327.0,0.203402]
[1737963287444,0.175507,98356.0,98327.0,0.203402]
[1737963287669,0.175507,98356.0,98335.0,0.203386]
[1737963287823,0.203337,98359.0,98355.0,0.09764465]
[1737963287824,0.00014919,98359.0,98355.0,0.09764465]
[1737963288181,0.00014919,98359.0,98356.0,0.09734729]
[1737963288715,0.152507,98356.0,98355.0,0.00029736]
[1737963288918,0.305807,98356.0,98355.0,0.00029736]
[1737963289370,0.455807,98356.0,98355.0,0.00029736]
[1737963289801,0.173,98355.0,98319.0,0.00188307]
[1737963289952,0.152559,98323.0,98319.0,0.00188307]
[1737963290162,0.152556,98325.0,98320.0,0.09734729]
[1737963290376,0.01854,98325.0,98321.0,0.203415]
[1737963290581,0.01854,98325.0,98324.0,0.152556]
[1737963290773,0.01854,98325.0,98324.0,0.25091929]
[1737963290978,0.01854,98325.0,98324.0,0.25178626]
[1737963291218,0.01854,98325.0,98324.0,0.40178626]
[1737963291412,0.01854,98325.0,98324.0,0.40040109]
[1737963291576,0.01665703,98325.0,98324.0,0.40040109]
[1737963291775,0.01428541,98325.0,98324.0,0.40199621]
[1737963292094,4.1e-07,98325.0,98324.0,0.62912366]
[1737963292269,0.0469,98384.0,98324.0,0.62912366]
[1737963292270,0.0469,98384.0,98373.0,0.15248]
[1737963292615,0.0469,98384.0,98383.0,0.152465]
[1737963292819,0.152463,98384.0,98383.0,0.09734729]
[1737963293029,0.152463,98384.0,98354.0,0.203346]
[1737963293030,0.01,98400.0,98354.0,0.00138766]
[1737963293234,0.023,98392.0,98355.0,0.09734729]
[1737963293436,0.023,98399.0,98355.0,1.00888511]
[1737963293640,0.00044748,98394.0,98355.0,0.09734729]
[1737963293772,0.173,98390.0,98355.0,0.30069029]
[1737963293977,0.00044748,98394.0,98363.0,0.152495]
[1737963294200,0.20328,98387.0,98364.0,0.09734729]
[1737963294402,0.152486,98370.0,98364.0,0.09734729]
[1737963294624,0.00044748,98394.0,98367.0,0.09734729]
[1737963294767,0.00044748,98394.0,98369.0,0.09734729]
[1737963294958,0.00044748,98394.0,98383.0,0.001]
[1737963295210,0.152463,98384.0,98383.0,0.001]
[1737963295380,0.152463,98384.0,98383.0,0.09834729]
[1737963295581,0.152463,98384.0,98383.0,0.09734729]
[1737963295812,0.00044748,98394.0,98383.0,0.09734729]
[1737963295985,0.152463,98384.0,98383.0,0.09734729]
[1737963296204,0.203302,98376.0,98356.0,0.91153782]
[1737963296402,0.152495,98364.0,98357.0,0.09734729]
[1737963296685,0.023,98371.0,98357.0,0.09734729]
[1737963296883,0.152486,98370.0,98359.0,0.152501]
[1737963297095,0.001,98384.0,98360.0,0.09734729]
[1737963297096,0.152499,98361.0,98360.0,0.09734729]
[1737963297303,0.152508,98355.0,98335.0,0.91153782]
[1737963297507,0.175508,98355.0,98325.0,0.91153782]
[1737963297691,0.175508,98355.0,98337.0,0.152536]
[1737963297893,0.00014919,98361.0,98354.0,0.09873495]
[1737963298036,0.00014919,98361.0,98358.0,0.09734729]
[1737963298649,0.152502,98359.0,98358.0,0.09734729]
[1737963299156,0.00214919,98361.0,98354.0,0.00138766]
[1737963299157,0.152508,98355.0,98354.0,0.00138766]
[1737963299363,0.175508,98355.0,98354.0,0.00138766]
[1737963299965,0.175508,98355.0,98354.0,0.09873495]
[1737963300167,0.152508,98356.0,98354.0,0.09873495]
[1737963300368,0.152507,98356.0,98355.0,0.09734729]
[1737963300592,0.175508,98355.0,98354.0,0.00138766]
[1737963300996,0.203336,98359.0,98354.0,0.09873495]
[1737963300997,0.152504,98358.0,98354.0,0.09873495]
[1737963301200,0.01014919,98361.0,98355.0,0.09734729]
[1737963301358,0.01014919,98361.0,98360.0,0.24984829]
[1737963301871,0.01014919,98361.0,98360.0,0.64552231]
[1737963302085,0.01014919,98361.0,98360.0,1.04045629]
[1737963302255,0.01014919,98361.0,98360.0,0.59194931]
[1737963302460,0.01014919,98361.0,98360.0,0.59074529]
[1737963302692,0.01014919,98361.0,98360.0,0.40205231]
[1737963302899,0.01014919,98361.0,98360.0,0.25205231]
[1737963303075,0.01014919,98361.0,98360.0,0.09855131]
[1737963303279,0.01014919,98361.0,98360.0,0.25105231]
[1737963303506,0.01014919,98361.0,98360.0,0.36176231]
[1737963304083,0.01114919,98361.0,98360.0,0.39887831]
[1737963304501,0.01114919,98361.0,98360.0,0.26601533]
[1737963304502,0.01014919,98361.0,98360.0,0.26601533]
[1737963304706,0.01114919,98361.0,98360.0,0.27601533]
[1737963304950,0.01014919,98361.0,98360.0,0.26901533]
[1737963305149,0.01014919,98361.0,98360.0,0.48418831]
[1737963305371,0.00861138,98361.0,98360.0,0.49118831]
[1737963305570,0.00861138,98361.0,98360.0,0.63820353]
[1737963305779,0.00861138,98361.0,98360.0,0.44143951]
[1737963305993,0.00861138,98361.0,98360.0,0.10534729]
[1737963306201,0.18411038,98361.0,98360.0,0.10234729]
[1737963306410,0.18411038,98361.0,98360.0,0.008]
[1737963307034,0.33411038,98361.0,98360.0,0.008]
[1737963307240,0.33411038,98361.0,98324.0,0.00029736]
[1737963307241,0.152555,98325.0,98324.0,0.00029736]
[1737963307463,0.152555,98325.0,98324.0,0.09764465]
[1737963307871,0.15,98338.0,98324.0,0.09764465]
[1737963307872,0.152553,98327.0,98324.0,0.09764465]
[1737963308080,0.203336,98359.0,98326.0,0.203404]
[1737963308289,0.203336,98359.0,98324.0,0.00029736]
[1737963308290,0.16311038,98361.0,98360.0,0.001]
[1737963308493,0.31311038,98361.0,98360.0,0.001]
[1737963308712,0.01061138,98361.0,98360.0,0.09834729]
[1737963308916,0.00761138,98361.0,98360.0,0.25084829]
[1737963309131,0.00761138,98361.0,98360.0,1.1718769]
[1737963309335,0.00761138,98361.0,98360.0,0.10683808]
[1737963309560,0.18311038,98361.0,98360.0,0.10683808]
[1737963309734,0.18311038,98361.0,98360.0,0.00949079]
[1737963309991,0.22961038,98361.0,98360.0,0.00949079]
[1737963310201,0.22961038,98361.0,98324.0,0.00129736]
[1737963310202,0.152555,98325.0,98324.0,0.00129736]
[1737963310407,0.175555,98325.0,98324.0,0.09864465]
[1737963311172,0.023,98325.0,98324.0,0.09764465]
[1737963311303,0.15,98343.0,98324.0,0.09814245]
[1737963311506,0.003,98359.0,98331.0,0.09734729]
[1737963311732,0.12921138,98361.0,98331.0,0.09734729]
[1737963311892,0.15,98349.0,98325.0,0.01493853]
[1737963312099,0.152552,98327.0,98326.0,0.09734729]
[1737963312320,0.023,98327.0,98326.0,0.09734729]
[1737963312720,0.007,98359.0,98343.0,0.152526]
[1737963312927,0.007,98359.0,98344.0,0.09734729]
[1737963313129,0.007,98359.0,98352.0,0.152513]
[1737963313325,0.007,98359.0,98333.0,0.203389]
[1737963313532,0.007,98359.0,98331.0,0.001]
[1737963313533,0.175524,98345.0,98344.0,0.00758617]
[1737963313726,0.325524,98345.0,98344.0,0.00758617]
[1737963315367,0.023,98335.0,98328.0,0.15255]
[1737963315565,0.152521,98347.0,98344.0,0.001]
[1737963315786,0.152522,98346.0,98345.0,0.09734729]
[1737963315959,0.023,98346.0,98328.0,0.15255]